Workbook

Sheet 1FVas
A1: Here we consider the dynamic hedging problem of an annuity using the 1-factor Vasicek model. | H1: 1.277777778 | I1: -0.06481481481
B2: In this model all risk comes from the uncertain future movement of the factor.
B3: Therefore we want to build an asset that has the same factor duration as our liability (the annuity).
A5: Parameters of the model: | J5: Annuity:
A6: theta | B6: 0.035 | C6: (long-run mean) | J6: Value: | K6: 1000000
A7: k | B7: 0.6 | C7: (magnitude of the pull to the long-run mean) | J7: Term (Yrs) | K7: 20
A8: sigma | B8: 0.04 | C8: (annual standard deviation)
A9: lambda | B9: 0.006 | C9: (risk premium)
A11: Current factor level: | D11: 0.03
A13: Term Structure:
A14: Term | B14: spot rate
A15: 0.5 | B15: =vasYield($D$11,$B$7,$B$6,$B$8,$B$9,A15) -> 0.03198735086
A16: 1 | B16: =vasYield($D$11,$B$7,$B$6,$B$8,$B$9,A16) -> 0.03354611992
A17: 1.5 | B17: 0.03478729711
A18: 2 | B18: 0.03578894719
A19: 2.5 | B19: 0.03660705451
A20: 3 | B20: 0.03728250812
A21: 3.5 | B21: 0.03784567812
A22: 4 | B22: 0.03831946773
A23: 4.5 | B23: 0.0387213864
A24: 5 | B24: 0.03906498367
A25: 5.5 | B25: 0.03936085874
A26: 6 | B26: 0.03961738332
A27: 6.5 | B27: 0.03984122732
A28: 7 | B28: 0.04003774678
A29: 7.5 | B29: 0.0402112738
A30: 8 | B30: 0.04036533572
A31: 8.5 | B31: 0.04050282272
A32: 9 | B32: 0.04062611686
A33: 9.5 | B33: 0.04073719257
A34: 10 | B34: 0.04083769524
A35: 10.5 | B35: 0.04092900322
A36: 11 | B36: 0.04101227699
A37: 11.5 | B37: 0.04108849839
A38: 12 | B38: 0.04115850203
A39: 12.5 | B39: 0.04122300068
A40: 13 | B40: 0.04128260579
A41: 13.5 | B41: 0.04133784413
A42: 14 | B42: 0.04138917147
A43: 14.5 | B43: 0.04143698373
A44: 15 | B44: 0.04148162622
A45: 15.5 | B45: 0.04152340126
A46: 16 | B46: 0.04156257447
A47: 16.5 | B47: 0.0415993801
A48: 17 | B48: 0.04163402539
A49: 17.5 | B49: 0.04166669435
A50: 18 | B50: 0.0416975508
A51: 18.5 | B51: 0.0417267411
A52: 19 | B52: 0.04175439633
A53: 19.5 | B53: 0.04178063426
A54: 20 | B54: 0.04180556096
A55: 20.5 | B55: 0.0418292722
A56: 21 | B56: 0.04185185468
A57: 21.5 | B57: 0.04187338706
A58: 22 | B58: 0.04189394087
A59: 22.5 | B59: 0.04191358132
A60: 23 | B60: 0.04193236793
A61: 23.5 | B61: 0.04195035517
A62: 24 | B62: 0.041967593
A63: 24.5 | B63: 0.04198412728
A64: 25 | B64: 0.04200000022
A65: 25.5 | B65: 0.0420152507
A66: 26 | B66: 0.04202991464
A67: 26.5 | B67: 0.04204402524
A68: 27 | B68: 0.04205761323
A69: 27.5 | B69: 0.04207070711
A70: 28 | B70: 0.04208333337
A71: 28.5 | B71: 0.04209551659
A72: 29 | B72: 0.04210727971
A73: 29.5 | B73: 0.04211864408
A74: 30 | B74: =vasYield($D$11,$B$7,$B$6,$B$8,$B$9,A74) -> 0.04212962964
A77: We compute the value of the coupon bond and annuity as portfolios of 0-coupon bonds:
A78: Coupon Bond | C78: 0.0425 | E78: 30 | F78: Year Term
A80: Term: | B80: 0.5 | C80: 1 | D80: 1.5 | E80: 2 | F80: 2.5 | G80: 3 | H80: 3.5 | I80: 4 | J80: 4.5 | K80: 5 | L80: 5.5 | M80: 6 | N80: 6.5 | O80: 7 | P80: 7.5 | Q80: 8 | R80: 8.5 | S80: 9 | T80: 9.5 | U80: 10 | V80: 10.5 | W80: 11 | X80: 11.5 | Y80: 12 | Z80: 12.5 | AA80: 13 | AB80: 13.5 | AC80: 14 | AD80: 14.5 | AE80: 15 | AF80: 15.5 | AG80: 16 | AH80: 16.5 | AI80: 17 | AJ80: 17.5 | AK80: 18 | AL80: 18.5 | AM80: 19 | AN80: 19.5 | AO80: 20 | AP80: 20.5 | AQ80: 21 | AR80: 21.5 | AS80: 22 | AT80: 22.5 | AU80: 23 | AV80: 23.5 | AW80: 24 | AX80: 24.5 | AY80: 25 | AZ80: 25.5 | BA80: 26 | BB80: 26.5 | BC80: 27 | BD80: 27.5 | BE80: 28 | BF80: 28.5 | BG80: 29 | BH80: 29.5 | BI80: 30
A81: Cash Flow: | B81: =50*$C$78 -> 2.125 | C81: =50*$C$78 -> 2.125 | D81: 2.125 | E81: 2.125 | F81: 2.125 | G81: 2.125 | H81: 2.125 | I81: 2.125 | J81: 2.125 | K81: 2.125 | L81: 2.125 | M81: 2.125 | N81: 2.125 | O81: 2.125 | P81: 2.125 | Q81: 2.125 | R81: 2.125 | S81: 2.125 | T81: 2.125 | U81: 2.125 | V81: 2.125 | W81: 2.125 | X81: 2.125 | Y81: 2.125 | Z81: 2.125 | AA81: 2.125 | AB81: 2.125 | AC81: 2.125 | AD81: 2.125 | AE81: 2.125 | AF81: 2.125 | AG81: 2.125 | AH81: 2.125 | AI81: 2.125 | AJ81: 2.125 | AK81: 2.125 | AL81: 2.125 | AM81: 2.125 | AN81: 2.125 | AO81: 2.125 | AP81: 2.125 | AQ81: 2.125 | AR81: 2.125 | AS81: 2.125 | AT81: 2.125 | AU81: 2.125 | AV81: 2.125 | AW81: 2.125 | AX81: 2.125 | AY81: 2.125 | AZ81: 2.125 | BA81: 2.125 | BB81: 2.125 | BC81: 2.125 | BD81: 2.125 | BE81: 2.125 | BF81: 2.125 | BG81: 2.125 | BH81: 2.125 | BI81: =100+50*$C$78 -> 102.125
A82: yld: | B82: =vasYield($D$11,$B$7,$B$6,$B$8,$B$9,B80) -> 0.03198735086 | C82: =vasYield($D$11,$B$7,$B$6,$B$8,$B$9,C80) -> 0.03354611992 | D82: 0.03478729711 | E82: 0.03578894719 | F82: 0.03660705451 | G82: 0.03728250812 | H82: 0.03784567812 | I82: 0.03831946773 | J82: 0.0387213864 | K82: 0.03906498367 | L82: 0.03936085874 | M82: 0.03961738332 | N82: 0.03984122732 | O82: 0.04003774678 | P82: 0.0402112738 | Q82: 0.04036533572 | R82: 0.04050282272 | S82: 0.04062611686 | T82: 0.04073719257 | U82: 0.04083769524 | V82: 0.04092900322 | W82: 0.04101227699 | X82: 0.04108849839 | Y82: 0.04115850203 | Z82: 0.04122300068 | AA82: 0.04128260579 | AB82: 0.04133784413 | AC82: 0.04138917147 | AD82: 0.04143698373 | AE82: 0.04148162622 | AF82: 0.04152340126 | AG82: 0.04156257447 | AH82: 0.0415993801 | AI82: 0.04163402539 | AJ82: 0.04166669435 | AK82: 0.0416975508 | AL82: 0.0417267411 | AM82: 0.04175439633 | AN82: 0.04178063426 | AO82: 0.04180556096 | AP82: 0.0418292722 | AQ82: 0.04185185468 | AR82: 0.04187338706 | AS82: 0.04189394087 | AT82: 0.04191358132 | AU82: 0.04193236793 | AV82: 0.04195035517 | AW82: 0.041967593 | AX82: 0.04198412728 | AY82: 0.04200000022 | AZ82: 0.0420152507 | BA82: 0.04202991464 | BB82: 0.04204402524 | BC82: 0.04205761323 | BD82: 0.04207070711 | BE82: 0.04208333337 | BF82: 0.04209551659 | BG82: 0.04210727971 | BH82: 0.04211864408 | BI82: 0.04212962964 | BJ82: (Paste Special -- Transpose)
A83: df: | B83: =EXP(-B80*B82) -> 0.9841335443 | C83: =EXP(-C80*C82) -> 0.9670103118 | D83: 0.9491571054 | E83: 0.930923761 | F83: 0.9125452221 | G83: 0.8941805879 | H83: 0.8759380818 | I83: 0.8578913056 | J83: 0.8400900094 | K83: 0.8225673474 | L83: 0.805344838 | M83: 0.7884357972 | N83: 0.7718477391 | O83: 0.755584069 | P83: 0.7396452841 | Q83: 0.72402983 | R83: 0.708734713 | S83: 0.6937559401 | T83: 0.679088834 | U83: 0.6647282607 | V83: 0.6506687923 | W83: 0.6369048243 | X83: 0.6234306597 | Y83: 0.6102405689 | Z83: 0.5973288328 | AA83: 0.5846897728 | AB83: 0.5723177724 | AC83: 0.5602072914 | AD83: 0.5483528765 | AE83: 0.5367491674 | AF83: 0.5253909013 | AG83: 0.5142729149 | AH83: 0.5033901459 | AI83: 0.4927376327 | AJ83: 0.4823105146 | AK83: 0.4721040303 | AL83: 0.462113517 | AM83: 0.4523344088 | AN83: 0.4427622352 | AO83: 0.4333926196 | AP83: 0.424221277 | AQ83: 0.4152440131 | AR83: 0.4064567215 | AS83: 0.3978553829 | AT83: 0.3894360626 | AU83: 0.3811949091 | AV83: 0.3731281523 | AW83: 0.3652321018 | AX83: 0.3575031455 | AY83: 0.3499377472 | AZ83: 0.342532446 | BA83: 0.3352838539 | BB83: 0.3281886548 | BC83: 0.3212436026 | BD83: 0.3144455199 | BE83: 0.3077912966 | BF83: 0.3012778884 | BG83: 0.2949023154 | BH83: 0.2886616609 | BI83: 0.2825530696
A84: PV: | B84: =B81*B83 -> 2.091283782 | C84: =C81*C83 -> 2.054896913 | D84: 2.016958849 | E84: 1.978212992 | F84: 1.939158597 | G84: 1.900133749 | H84: 1.861368424 | I84: 1.823019024 | J84: 1.78519127 | K84: 1.747955613 | L84: 1.711357781 | M84: 1.675426069 | N84: 1.640176446 | O84: 1.605616147 | P84: 1.571746229 | Q84: 1.538563389 | R84: 1.506061265 | S84: 1.474231373 | T84: 1.443063772 | U84: 1.412547554 | V84: 1.382671184 | W84: 1.353422752 | X84: 1.324790152 | Y84: 1.296761209 | Z84: 1.26932377 | AA84: 1.242465767 | AB84: 1.216175266 | AC84: 1.190440494 | AD84: 1.165249863 | AE84: 1.140591981 | AF84: 1.116455665 | AG84: 1.092829944 | AH84: 1.06970406 | AI84: 1.04706747 | AJ84: 1.024909844 | AK84: 1.003221064 | AL84: 0.9819912236 | AM84: 0.9612106186 | AN84: 0.9408697498 | AO84: 0.9209593166 | AP84: 0.9014702137 | AQ84: 0.8823935278 | AR84: 0.8637205333 | AS84: 0.8454426887 | AT84: 0.827551633 | AU84: 0.8100391818 | AV84: 0.7928973236 | AW84: 0.7761182164 | AX84: 0.7596941841 | AY84: 0.7436177129 | AZ84: 0.7278814478 | BA84: 0.7124781896 | BB84: 0.6974008915 | BC84: 0.6826426554 | BD84: 0.6681967297 | BE84: 0.6540565052 | BF84: 0.6402155128 | BG84: 0.6266674203 | BH84: 0.6134060293 | BI84: 28.85573223
A85: =SUM(B84:BI84) -> 100.5997035
A88: We do the same for the annuity: | E88: 20 | F88: Annuity Term
B89: But we will use Solver to compute the payment. | H89: Payment: | I89: 36944.90457
A90: Term: | B90: 0.5 | C90: 1 | D90: 1.5 | E90: 2 | F90: 2.5 | G90: 3 | H90: 3.5 | I90: 4 | J90: 4.5 | K90: 5 | L90: 5.5 | M90: 6 | N90: 6.5 | O90: 7 | P90: 7.5 | Q90: 8 | R90: 8.5 | S90: 9 | T90: 9.5 | U90: 10 | V90: 10.5 | W90: 11 | X90: 11.5 | Y90: 12 | Z90: 12.5 | AA90: 13 | AB90: 13.5 | AC90: 14 | AD90: 14.5 | AE90: 15 | AF90: 15.5 | AG90: 16 | AH90: 16.5 | AI90: 17 | AJ90: 17.5 | AK90: 18 | AL90: 18.5 | AM90: 19 | AN90: 19.5 | AO90: 20
A91: df: | B91: =B83 -> 0.9841335443 | C91: =C83 -> 0.9670103118 | D91: 0.9491571054 | E91: 0.930923761 | F91: 0.9125452221 | G91: 0.8941805879 | H91: 0.8759380818 | I91: 0.8578913056 | J91: 0.8400900094 | K91: 0.8225673474 | L91: 0.805344838 | M91: 0.7884357972 | N91: 0.7718477391 | O91: 0.755584069 | P91: 0.7396452841 | Q91: 0.72402983 | R91: 0.708734713 | S91: 0.6937559401 | T91: 0.679088834 | U91: 0.6647282607 | V91: 0.6506687923 | W91: 0.6369048243 | X91: 0.6234306597 | Y91: 0.6102405689 | Z91: 0.5973288328 | AA91: 0.5846897728 | AB91: 0.5723177724 | AC91: 0.5602072914 | AD91: 0.5483528765 | AE91: 0.5367491674 | AF91: 0.5253909013 | AG91: 0.5142729149 | AH91: 0.5033901459 | AI91: 0.4927376327 | AJ91: 0.4823105146 | AK91: 0.4721040303 | AL91: 0.462113517 | AM91: 0.4523344088 | AN91: 0.4427622352 | AO91: 0.4333926196
A92: CF: | B92: =$I$89 -> 36944.90457 | C92: =$I$89 -> 36944.90457 | D92: 36944.90457 | E92: 36944.90457 | F92: 36944.90457 | G92: 36944.90457 | H92: 36944.90457 | I92: 36944.90457 | J92: 36944.90457 | K92: 36944.90457 | L92: 36944.90457 | M92: 36944.90457 | N92: 36944.90457 | O92: 36944.90457 | P92: 36944.90457 | Q92: 36944.90457 | R92: 36944.90457 | S92: 36944.90457 | T92: 36944.90457 | U92: 36944.90457 | V92: 36944.90457 | W92: 36944.90457 | X92: 36944.90457 | Y92: 36944.90457 | Z92: 36944.90457 | AA92: 36944.90457 | AB92: 36944.90457 | AC92: 36944.90457 | AD92: 36944.90457 | AE92: 36944.90457 | AF92: 36944.90457 | AG92: 36944.90457 | AH92: 36944.90457 | AI92: 36944.90457 | AJ92: 36944.90457 | AK92: 36944.90457 | AL92: 36944.90457 | AM92: 36944.90457 | AN92: 36944.90457 | AO92: 36944.90457
A93: PV: | B93: =B91*B92 -> 36358.71988 | C93: =C91*C92 -> 35726.10369 | D93: 35066.51868 | E93: 34392.88952 | F93: 33713.89615 | G93: 33035.41649 | H93: 32361.44884 | I93: 31694.71242 | J93: 31037.04523 | K93: 30389.67215 | L93: 29753.38819 | M93: 29128.68529 | N93: 28515.84106 | O93: 27914.98132 | P93: 27326.12444 | Q93: 26749.21298 | R93: 26184.13634 | S93: 25630.747 | T93: 25088.87217 | U93: 24558.32216 | V93: 24038.89644 | W93: 23530.38796 | X93: 23032.58623 | Y93: 22545.27958 | Z93: 22068.25673 | AA93: 21601.30786 | AB93: 21144.22548 | AC93: 20696.80492 | AD93: 20258.84469 | AE93: 19830.14677 | AF93: 19410.51671 | AG93: 18999.76377 | AH93: 18597.7009 | AI93: 18204.14482 | AJ93: 17818.91594 | AK93: 17441.83835 | AL93: 17072.73979 | AM93: 16711.45157 | AN93: 16357.80853 | AO93: =AO91*AO92 -> 16011.64897
A94: =SUM(B93:AO93) -> 1000000
B95: Criterion: | C95: =(K6-A94)^2 -> 5.421010862e-20
A97: The bank ascertains that the fair cash flow is: | E97: =I89 -> $36,944.90 | F97: every 6 months. | H97: (Using the Vasicek model with parameters and state variable above.)
A99: Similarly, we compute the factor durations of securities by computing the factor duration of each cash flow, and treating each cash flow as a component of a portfolio.
A100: To get the factor duration, we use the chain rule. We know the duration which is the percentage change in the value given a change in the spot rate.
A101: So we also have to know how the spot rate changes when the factor changes.
A106: So we can compute the factor duration of the bond:
A108: Term: | B108: 0.5 | C108: 1 | D108: 1.5 | E108: 2 | F108: 2.5 | G108: 3 | H108: 3.5 | I108: 4 | J108: 4.5 | K108: 5 | L108: 5.5 | M108: 6 | N108: 6.5 | O108: 7 | P108: 7.5 | Q108: 8 | R108: 8.5 | S108: 9 | T108: 9.5 | U108: 10 | V108: 10.5 | W108: 11 | X108: 11.5 | Y108: 12 | Z108: 12.5 | AA108: 13 | AB108: 13.5 | AC108: 14 | AD108: 14.5 | AE108: 15 | AF108: 15.5 | AG108: 16 | AH108: 16.5 | AI108: 17 | AJ108: 17.5 | AK108: 18 | AL108: 18.5 | AM108: 19 | AN108: 19.5 | AO108: 20 | AP108: 20.5 | AQ108: 21 | AR108: 21.5 | AS108: 22 | AT108: 22.5 | AU108: 23 | AV108: 23.5 | AW108: 24 | AX108: 24.5 | AY108: 25 | AZ108: 25.5 | BA108: 26 | BB108: 26.5 | BC108: 27 | BD108: 27.5 | BE108: 28 | BF108: 28.5 | BG108: 29 | BH108: 29.5 | BI108: 30
A109: Cash Flow: | B109: =50*$C$78 -> 2.125 | C109: =50*$C$78 -> 2.125 | D109: 2.125 | E109: 2.125 | F109: 2.125 | G109: 2.125 | H109: 2.125 | I109: 2.125 | J109: 2.125 | K109: 2.125 | L109: 2.125 | M109: 2.125 | N109: 2.125 | O109: 2.125 | P109: 2.125 | Q109: 2.125 | R109: 2.125 | S109: 2.125 | T109: 2.125 | U109: 2.125 | V109: 2.125 | W109: 2.125 | X109: 2.125 | Y109: 2.125 | Z109: 2.125 | AA109: 2.125 | AB109: 2.125 | AC109: 2.125 | AD109: 2.125 | AE109: 2.125 | AF109: 2.125 | AG109: 2.125 | AH109: 2.125 | AI109: 2.125 | AJ109: 2.125 | AK109: 2.125 | AL109: 2.125 | AM109: 2.125 | AN109: 2.125 | AO109: 2.125 | AP109: 2.125 | AQ109: 2.125 | AR109: 2.125 | AS109: 2.125 | AT109: 2.125 | AU109: 2.125 | AV109: 2.125 | AW109: 2.125 | AX109: 2.125 | AY109: 2.125 | AZ109: 2.125 | BA109: 2.125 | BB109: 2.125 | BC109: 2.125 | BD109: 2.125 | BE109: 2.125 | BF109: 2.125 | BG109: 2.125 | BH109: 2.125 | BI109: =100+50*$C$78 -> 102.125
A110: yld: | B110: =vasYield($D$11,$B$7,$B$6,$B$8,$B$9,B108) -> 0.03198735086 | C110: =vasYield($D$11,$B$7,$B$6,$B$8,$B$9,C108) -> 0.03354611992 | D110: 0.03478729711 | E110: 0.03578894719 | F110: 0.03660705451 | G110: 0.03728250812 | H110: 0.03784567812 | I110: 0.03831946773 | J110: 0.0387213864 | K110: 0.03906498367 | L110: 0.03936085874 | M110: 0.03961738332 | N110: 0.03984122732 | O110: 0.04003774678 | P110: 0.0402112738 | Q110: 0.04036533572 | R110: 0.04050282272 | S110: 0.04062611686 | T110: 0.04073719257 | U110: 0.04083769524 | V110: 0.04092900322 | W110: 0.04101227699 | X110: 0.04108849839 | Y110: 0.04115850203 | Z110: 0.04122300068 | AA110: 0.04128260579 | AB110: 0.04133784413 | AC110: 0.04138917147 | AD110: 0.04143698373 | AE110: 0.04148162622 | AF110: 0.04152340126 | AG110: 0.04156257447 | AH110: 0.0415993801 | AI110: 0.04163402539 | AJ110: 0.04166669435 | AK110: 0.0416975508 | AL110: 0.0417267411 | AM110: 0.04175439633 | AN110: 0.04178063426 | AO110: 0.04180556096 | AP110: 0.0418292722 | AQ110: 0.04185185468 | AR110: 0.04187338706 | AS110: 0.04189394087 | AT110: 0.04191358132 | AU110: 0.04193236793 | AV110: 0.04195035517 | AW110: 0.041967593 | AX110: 0.04198412728 | AY110: 0.04200000022 | AZ110: 0.0420152507 | BA110: 0.04202991464 | BB110: 0.04204402524 | BC110: 0.04205761323 | BD110: 0.04207070711 | BE110: 0.04208333337 | BF110: 0.04209551659 | BG110: 0.04210727971 | BH110: 0.04211864408 | BI110: 0.04212962964
A111: df: | B111: =EXP(-B108*B110) -> 0.9841335443 | C111: =EXP(-C108*C110) -> 0.9670103118 | D111: 0.9491571054 | E111: 0.930923761 | F111: 0.9125452221 | G111: 0.8941805879 | H111: 0.8759380818 | I111: 0.8578913056 | J111: 0.8400900094 | K111: 0.8225673474 | L111: 0.805344838 | M111: 0.7884357972 | N111: 0.7718477391 | O111: 0.755584069 | P111: 0.7396452841 | Q111: 0.72402983 | R111: 0.708734713 | S111: 0.6937559401 | T111: 0.679088834 | U111: 0.6647282607 | V111: 0.6506687923 | W111: 0.6369048243 | X111: 0.6234306597 | Y111: 0.6102405689 | Z111: 0.5973288328 | AA111: 0.5846897728 | AB111: 0.5723177724 | AC111: 0.5602072914 | AD111: 0.5483528765 | AE111: 0.5367491674 | AF111: 0.5253909013 | AG111: 0.5142729149 | AH111: 0.5033901459 | AI111: 0.4927376327 | AJ111: 0.4823105146 | AK111: 0.4721040303 | AL111: 0.462113517 | AM111: 0.4523344088 | AN111: 0.4427622352 | AO111: 0.4333926196 | AP111: 0.424221277 | AQ111: 0.4152440131 | AR111: 0.4064567215 | AS111: 0.3978553829 | AT111: 0.3894360626 | AU111: 0.3811949091 | AV111: 0.3731281523 | AW111: 0.3652321018 | AX111: 0.3575031455 | AY111: 0.3499377472 | AZ111: 0.342532446 | BA111: 0.3352838539 | BB111: 0.3281886548 | BC111: 0.3212436026 | BD111: 0.3144455199 | BE111: 0.3077912966 | BF111: 0.3012778884 | BG111: 0.2949023154 | BH111: 0.2886616609 | BI111: 0.2825530696
A112: PV: | B112: =B109*B111 -> 2.091283782 | C112: =C109*C111 -> 2.054896913 | D112: =D109*D111 -> 2.016958849 | E112: =E109*E111 -> 1.978212992 | F112: =F109*F111 -> 1.939158597 | G112: =G109*G111 -> 1.900133749 | H112: =H109*H111 -> 1.861368424 | I112: =I109*I111 -> 1.823019024 | J112: =J109*J111 -> 1.78519127 | K112: =K109*K111 -> 1.747955613 | L112: =L109*L111 -> 1.711357781 | M112: =M109*M111 -> 1.675426069 | N112: =N109*N111 -> 1.640176446 | O112: =O109*O111 -> 1.605616147 | P112: =P109*P111 -> 1.571746229 | Q112: =Q109*Q111 -> 1.538563389 | R112: =R109*R111 -> 1.506061265 | S112: =S109*S111 -> 1.474231373 | T112: =T109*T111 -> 1.443063772 | U112: =U109*U111 -> 1.412547554 | V112: =V109*V111 -> 1.382671184 | W112: =W109*W111 -> 1.353422752 | X112: =X109*X111 -> 1.324790152 | Y112: =Y109*Y111 -> 1.296761209 | Z112: =Z109*Z111 -> 1.26932377 | AA112: =AA109*AA111 -> 1.242465767 | AB112: =AB109*AB111 -> 1.216175266 | AC112: =AC109*AC111 -> 1.190440494 | AD112: =AD109*AD111 -> 1.165249863 | AE112: =AE109*AE111 -> 1.140591981 | AF112: =AF109*AF111 -> 1.116455665 | AG112: =AG109*AG111 -> 1.092829944 | AH112: =AH109*AH111 -> 1.06970406 | AI112: =AI109*AI111 -> 1.04706747 | AJ112: =AJ109*AJ111 -> 1.024909844 | AK112: =AK109*AK111 -> 1.003221064 | AL112: =AL109*AL111 -> 0.9819912236 | AM112: =AM109*AM111 -> 0.9612106186 | AN112: =AN109*AN111 -> 0.9408697498 | AO112: =AO109*AO111 -> 0.9209593166 | AP112: =AP109*AP111 -> 0.9014702137 | AQ112: =AQ109*AQ111 -> 0.8823935278 | AR112: =AR109*AR111 -> 0.8637205333 | AS112: =AS109*AS111 -> 0.8454426887 | AT112: =AT109*AT111 -> 0.827551633 | AU112: =AU109*AU111 -> 0.8100391818 | AV112: =AV109*AV111 -> 0.7928973236 | AW112: =AW109*AW111 -> 0.7761182164 | AX112: =AX109*AX111 -> 0.7596941841 | AY112: =AY109*AY111 -> 0.7436177129 | AZ112: =AZ109*AZ111 -> 0.7278814478 | BA112: =BA109*BA111 -> 0.7124781896 | BB112: =BB109*BB111 -> 0.6974008915 | BC112: =BC109*BC111 -> 0.6826426554 | BD112: =BD109*BD111 -> 0.6681967297 | BE112: =BE109*BE111 -> 0.6540565052 | BF112: =BF109*BF111 -> 0.6402155128 | BG112: =BG109*BG111 -> 0.6266674203 | BH112: =BH109*BH111 -> 0.6134060293 | BI112: =BI109*BI111 -> 28.85573223
A113: =SUM(B112:BI112) -> 100.5997035
A114: wt: | B114: =B112/$A$113 -> 0.02078817044 | C114: =C112/$A$113 -> 0.02042647087 | D114: 0.02004935183 | E114: 0.01966420302 | F114: 0.01927598721 | G114: 0.01888806511 | H114: 0.01850272277 | I114: 0.01812151489 | J114: 0.01774549237 | K114: 0.01737535553 | L114: 0.0170115589 | M114: 0.01665438377 | N114: 0.01630398887 | O114: 0.01596044612 | P114: 0.01562376602 | Q114: 0.01529391575 | R114: 0.01497083205 | S114: 0.0146544306 | T114: 0.01434461258 | U114: 0.01404126956 | V114: 0.01374428687 | W114: 0.01345354614 | X114: 0.01316892701 | Y114: 0.01289030846 | Z114: 0.0126175697 | AA114: 0.01235059075 | AB114: 0.01208925299 | AC114: 0.0118334394 | AD114: 0.01158303477 | AE114: 0.01133792587 | AF114: 0.01109800155 | AG114: 0.01086315274 | AH114: 0.0106332725 | AI114: 0.01040825602 | AJ114: 0.01018800064 | AK114: 0.009972405782 | AL114: 0.009761372945 | AM114: 0.009554805686 | AN114: 0.009352609575 | AO114: 0.00915469216 | AP114: 0.008960962933 | AQ114: 0.008771333289 | AR114: 0.008585716494 | AS114: 0.008404027643 | AT114: 0.008226183623 | AU114: 0.008052103077 | AV114: 0.00788170637 | AW114: 0.007714915549 | AX114: 0.007551654309 | AY114: 0.007391847961 | AZ114: 0.007235423394 | BA114: 0.007082309044 | BB114: 0.006932434863 | BC114: 0.006785732283 | BD114: 0.006642134189 | BE114: 0.006501574883 | BF114: 0.00636399006 | BG114: 0.006229316775 | BH114: 0.006097493415 | BI114: 0.28683715 | BJ114: Verify that the weights sum to 1: | BN114: =SUM(B114:BI114) -> 1
A115: dr/df | B115: =(1-EXP(-$B$7*B108))/($B$7*B108) -> 0.8639392644 | C115: =(1-EXP(-$B$7*C108))/($B$7*C108) -> 0.7519806065 | D115: 0.6593670447 | E115: 0.5823381567 | F115: 0.5179132266 | G115: 0.4637228399 | H115: 0.4178778913 | I115: 0.3788675195 | J115: 0.3454794397 | K115: 0.3167376439 | L115: 0.2918535856 | M115: 0.2701878549 | N115: 0.2512200227 | O115: 0.2345248627 | P115: 0.2197535563 | Q115: 0.2066188027 | R115: 0.1948829909 | S115: 0.1843487813 | T115: 0.174851585 | U115: 0.1662535413 | V115: 0.1584386818 | W115: 0.1513090351 | X115: 0.1447814804 | Y115: 0.1387851964 | Z115: 0.1332595888 | AA115: 0.1281525981 | AB115: 0.1234193162 | AC115: 0.1190208491 | AD115: 0.1149233809 | AE115: 0.1110973989 | AF115: 0.1075170512 | AG115: 0.1041596116 | AH115: 0.1010050329 | AI115: 0.09803557154 | AJ115: 0.09523547272 | AK115: 0.09259070375 | AL115: 0.09008872862 | AM115: 0.08771831619 | AN115: 0.0854693766 | AO115: 0.08333282132 | AP115: 0.08130044295 | AQ115: 0.07936481174 | AR115: 0.0775191862 | AS115: 0.07575743556 | AT115: 0.07407397252 | AU115: 0.07246369452 | AV115: 0.07092193245 | AW115: 0.06944440574 | AX115: 0.06802718279 | AY115: 0.06666664627 | AZ115: 0.06535946231 | BA115: 0.06410255334 | BB115: 0.06289307394 | BC115: 0.06172838937 | BD115: 0.06060605647 | BE115: 0.05952380651 | BF115: 0.05847952997 | BG115: 0.05747126277 | BH115: 0.05649717398 | BI115: 0.05555555471
A116: Fctr Dur: | B116: =B108*B115 -> 0.4319696322 | C116: =C108*C115 -> 0.7519806065 | D116: =D108*D115 -> 0.9890505671 | E116: 1.164676313 | F116: 1.294783066 | G116: 1.39116852 | H116: 1.46257262 | I116: 1.515470078 | J116: 1.554657479 | K116: 1.583688219 | L116: 1.605194721 | M116: 1.621127129 | N116: 1.632930148 | O116: 1.641674039 | P116: 1.648151672 | Q116: 1.652950422 | R116: 1.656505422 | S116: 1.659139032 | T116: 1.661090058 | U116: 1.662535413 | V116: 1.663606159 | W116: 1.664399387 | X116: 1.664987024 | Y116: 1.665422357 | Z116: 1.665744859 | AA116: 1.665983775 | AB116: 1.666160768 | AC116: 1.666291888 | AD116: 1.666389024 | AE116: 1.666460984 | AF116: 1.666514293 | AG116: 1.666553785 | AH116: 1.666583042 | AI116: 1.666604716 | AJ116: 1.666620773 | AK116: 1.666632667 | AL116: 1.666641479 | AM116: 1.666648008 | AN116: 1.666652844 | AO116: 1.666656426 | AP116: 1.66665908 | AQ116: 1.666661047 | AR116: 1.666662503 | AS116: 1.666663582 | AT116: 1.666664382 | AU116: 1.666664974 | AV116: 1.666665413 | AW116: 1.666665738 | AX116: 1.666665978 | AY116: 1.666666157 | AZ116: 1.666666289 | BA116: 1.666666387 | BB116: 1.666666459 | BC116: 1.666666513 | BD116: 1.666666553 | BE116: 1.666666582 | BF116: 1.666666604 | BG116: 1.66666662 | BH116: 1.666666632 | BI116: 1.666666641
A117: FD * wt: | B117: =B114*B116 -> 0.008979858339 | C117: =C114*C116 -> 0.01536030996 | D117: 0.0198298228 | E117: 0.02290243148 | F117: 0.02495822183 | G117: 0.02627648158 | H117: 0.02706157571 | I117: 0.02746261359 | J117: 0.02758816243 | K117: 0.02751714585 | L117: 0.02730686454 | M117: 0.02699887336 | N117: 0.02662327495 | O117: 0.02620185004 | P117: 0.0257503361 | Q117: 0.02528008448 | R117: 0.02479926448 | S117: 0.0243137378 | T117: 0.02382769334 | U117: 0.02334410789 | V117: 0.02286508029 | W117: 0.02239207394 | X117: 0.02192609259 | Y117: 0.0214678079 | Z117: 0.02101765186 | AA117: 0.02057588381 | AB117: 0.02014263906 | AC117: 0.01971796407 | AD117: 0.01930184199 | AE117: 0.01889421111 | AF117: 0.01849497821 | AG117: 0.01810402832 | AH117: 0.01772123163 | AI117: 0.01734644858 | AJ117: 0.0169795335 | AK117: 0.01662033725 | AL117: 0.01626870905 | AM117: 0.01592449786 | AN117: 0.01558755334 | AO117: 0.01525772652 | AP117: 0.01493487024 | AQ117: 0.01461883952 | AR117: 0.01430949174 | AS117: 0.01400668682 | AT117: 0.01371028724 | AU117: 0.01342015817 | AV117: 0.0131361674 | AW117: 0.01285818541 | AX117: 0.01258608532 | AY117: 0.01231974283 | AZ117: 0.01205903626 | BA117: 0.01180384643 | BB117: 0.01155405667 | BC117: 0.01130955276 | BD117: 0.01107022289 | BE117: 0.01083595759 | BF117: 0.0106066497 | BG117: 0.01038219434 | BH117: 0.01016248882 | BI117: 0.4780619094
A118: =SUM(B117:BI117) -> 1.572735431
A121: Note that the factor duration is much lower than this bond's duration.
A122: The reason for this is that the factor is mean reverting. Even if we increase the factor by 100 basis points, this will have a very small effect on long-term rates.
A123: Under a 1-factor model, in fact, we would not see much variation in long-term interest rates.
A125: And we compute the factor duration of the annuity:
A127: Term: | B127: 0.5 | C127: 1 | D127: 1.5 | E127: 2 | F127: 2.5 | G127: 3 | H127: 3.5 | I127: 4 | J127: 4.5 | K127: 5 | L127: 5.5 | M127: 6 | N127: 6.5 | O127: 7 | P127: 7.5 | Q127: 8 | R127: 8.5 | S127: 9 | T127: 9.5 | U127: 10 | V127: 10.5 | W127: 11 | X127: 11.5 | Y127: 12 | Z127: 12.5 | AA127: 13 | AB127: 13.5 | AC127: 14 | AD127: 14.5 | AE127: 15 | AF127: 15.5 | AG127: 16 | AH127: 16.5 | AI127: 17 | AJ127: 17.5 | AK127: 18 | AL127: 18.5 | AM127: 19 | AN127: 19.5 | AO127: 20
A128: df: | B128: =B91 -> 0.9841335443 | C128: =C91 -> 0.9670103118 | D128: 0.9491571054 | E128: 0.930923761 | F128: 0.9125452221 | G128: 0.8941805879 | H128: 0.8759380818 | I128: 0.8578913056 | J128: 0.8400900094 | K128: 0.8225673474 | L128: 0.805344838 | M128: 0.7884357972 | N128: 0.7718477391 | O128: 0.755584069 | P128: 0.7396452841 | Q128: 0.72402983 | R128: 0.708734713 | S128: 0.6937559401 | T128: 0.679088834 | U128: 0.6647282607 | V128: 0.6506687923 | W128: 0.6369048243 | X128: 0.6234306597 | Y128: 0.6102405689 | Z128: 0.5973288328 | AA128: 0.5846897728 | AB128: 0.5723177724 | AC128: 0.5602072914 | AD128: 0.5483528765 | AE128: 0.5367491674 | AF128: 0.5253909013 | AG128: 0.5142729149 | AH128: 0.5033901459 | AI128: 0.4927376327 | AJ128: 0.4823105146 | AK128: 0.4721040303 | AL128: 0.462113517 | AM128: 0.4523344088 | AN128: 0.4427622352 | AO128: 0.4333926196
A129: CF: | B129: =$I$89 -> 36944.90457 | C129: =$I$89 -> 36944.90457 | D129: 36944.90457 | E129: 36944.90457 | F129: 36944.90457 | G129: 36944.90457 | H129: 36944.90457 | I129: 36944.90457 | J129: 36944.90457 | K129: 36944.90457 | L129: 36944.90457 | M129: 36944.90457 | N129: 36944.90457 | O129: 36944.90457 | P129: 36944.90457 | Q129: 36944.90457 | R129: 36944.90457 | S129: 36944.90457 | T129: 36944.90457 | U129: 36944.90457 | V129: 36944.90457 | W129: 36944.90457 | X129: 36944.90457 | Y129: 36944.90457 | Z129: 36944.90457 | AA129: 36944.90457 | AB129: 36944.90457 | AC129: 36944.90457 | AD129: 36944.90457 | AE129: 36944.90457 | AF129: 36944.90457 | AG129: 36944.90457 | AH129: 36944.90457 | AI129: 36944.90457 | AJ129: 36944.90457 | AK129: 36944.90457 | AL129: 36944.90457 | AM129: 36944.90457 | AN129: 36944.90457 | AO129: 36944.90457
A130: PV: | B130: =B128*B129 -> 36358.71988 | C130: =C128*C129 -> 35726.10369 | D130: 35066.51868 | E130: 34392.88952 | F130: 33713.89615 | G130: 33035.41649 | H130: 32361.44884 | I130: 31694.71242 | J130: 31037.04523 | K130: 30389.67215 | L130: 29753.38819 | M130: 29128.68529 | N130: 28515.84106 | O130: 27914.98132 | P130: 27326.12444 | Q130: 26749.21298 | R130: 26184.13634 | S130: 25630.747 | T130: 25088.87217 | U130: 24558.32216 | V130: 24038.89644 | W130: 23530.38796 | X130: 23032.58623 | Y130: 22545.27958 | Z130: 22068.25673 | AA130: 21601.30786 | AB130: 21144.22548 | AC130: 20696.80492 | AD130: 20258.84469 | AE130: 19830.14677 | AF130: 19410.51671 | AG130: 18999.76377 | AH130: 18597.7009 | AI130: 18204.14482 | AJ130: 17818.91594 | AK130: 17441.83835 | AL130: 17072.73979 | AM130: 16711.45157 | AN130: 16357.80853 | AO130: 16011.64897
A131: =SUM(B130:AO130) -> 1000000
A132: w: | B132: =B130/$A$131 -> 0.03635871988 | C132: =C130/$A$131 -> 0.03572610369 | D132: 0.03506651868 | E132: 0.03439288952 | F132: 0.03371389615 | G132: 0.03303541649 | H132: 0.03236144884 | I132: 0.03169471242 | J132: 0.03103704523 | K132: 0.03038967215 | L132: 0.02975338819 | M132: 0.02912868529 | N132: 0.02851584106 | O132: 0.02791498132 | P132: 0.02732612444 | Q132: 0.02674921298 | R132: 0.02618413634 | S132: 0.025630747 | T132: 0.02508887217 | U132: 0.02455832216 | V132: 0.02403889644 | W132: 0.02353038796 | X132: 0.02303258623 | Y132: 0.02254527958 | Z132: 0.02206825673 | AA132: 0.02160130786 | AB132: 0.02114422548 | AC132: 0.02069680492 | AD132: 0.02025884469 | AE132: 0.01983014677 | AF132: 0.01941051671 | AG132: 0.01899976377 | AH132: 0.0185977009 | AI132: 0.01820414482 | AJ132: 0.01781891594 | AK132: 0.01744183835 | AL132: 0.01707273979 | AM132: 0.01671145157 | AN132: 0.01635780853 | AO132: 0.01601164897
A133: dr/df | B133: =(1-EXP(-$B$7*B127))/($B$7*B127) -> 0.8639392644 | C133: =(1-EXP(-$B$7*C127))/($B$7*C127) -> 0.7519806065 | D133: 0.6593670447 | E133: 0.5823381567 | F133: 0.5179132266 | G133: 0.4637228399 | H133: 0.4178778913 | I133: 0.3788675195 | J133: 0.3454794397 | K133: 0.3167376439 | L133: 0.2918535856 | M133: 0.2701878549 | N133: 0.2512200227 | O133: 0.2345248627 | P133: 0.2197535563 | Q133: 0.2066188027 | R133: 0.1948829909 | S133: 0.1843487813 | T133: 0.174851585 | U133: 0.1662535413 | V133: 0.1584386818 | W133: 0.1513090351 | X133: 0.1447814804 | Y133: 0.1387851964 | Z133: 0.1332595888 | AA133: 0.1281525981 | AB133: 0.1234193162 | AC133: 0.1190208491 | AD133: 0.1149233809 | AE133: 0.1110973989 | AF133: 0.1075170512 | AG133: 0.1041596116 | AH133: 0.1010050329 | AI133: 0.09803557154 | AJ133: 0.09523547272 | AK133: 0.09259070375 | AL133: 0.09008872862 | AM133: 0.08771831619 | AN133: 0.0854693766 | AO133: 0.08333282132
A134: Fctr Dur: | B134: =B127*B133 -> 0.4319696322 | C134: =C127*C133 -> 0.7519806065 | D134: 0.9890505671 | E134: 1.164676313 | F134: 1.294783066 | G134: 1.39116852 | H134: 1.46257262 | I134: 1.515470078 | J134: 1.554657479 | K134: 1.583688219 | L134: 1.605194721 | M134: 1.621127129 | N134: 1.632930148 | O134: 1.641674039 | P134: 1.648151672 | Q134: 1.652950422 | R134: 1.656505422 | S134: 1.659139032 | T134: 1.661090058 | U134: 1.662535413 | V134: 1.663606159 | W134: 1.664399387 | X134: 1.664987024 | Y134: 1.665422357 | Z134: 1.665744859 | AA134: 1.665983775 | AB134: 1.666160768 | AC134: 1.666291888 | AD134: 1.666389024 | AE134: 1.666460984 | AF134: 1.666514293 | AG134: 1.666553785 | AH134: 1.666583042 | AI134: 1.666604716 | AJ134: 1.666620773 | AK134: 1.666632667 | AL134: 1.666641479 | AM134: 1.666648008 | AN134: 1.666652844 | AO134: 1.666656426
A135: FD * w: | B135: =B134*B132 -> 0.01570586285 | C135: =C134*C132 -> 0.02686533712 | D135: 0.03468256019 | E135: 0.04005658377 | F135: 0.04365218184 | G135: 0.04595783145 | H135: 0.04733096901 | I135: 0.0480323883 | J135: 0.04825197449 | K135: 0.04812776578 | L135: 0.04775998165 | M135: 0.04722130196 | N135: 0.04656437656 | O135: 0.04582730013 | P135: 0.0450375977 | Q135: 0.04421512287 | R135: 0.04337416383 | S135: 0.04252497276 | T135: 0.04167487611 | U135: 0.04082908027 | V135: 0.03999125616 | W135: 0.03916396328 | X135: 0.03834895721 | Y135: 0.03754741266 | Z135: 0.0367600852 | AA135: 0.03598742842 | AB135: 0.03522967897 | AC135: 0.03448691814 | AD135: 0.03375911643 | AE135: 0.03304616589 | AF135: 0.03234790353 | AG135: 0.03166412823 | AH135: 0.03099461295 | AI135: 0.03033911361 | AJ135: 0.02969737545 | AK135: 0.02906913757 | AL135: 0.0284541363 | AM135: 0.02785210746 | AN135: 0.0272627881 | AO135: 0.02668591765
A136: =SUM(B135:AO135) -> 1.502380432
A139: And similarly we compute the factor duration of the 6-month bill: | G139: =B127*B133 -> 0.4319696322
A141: Since there is only one source of risk in the model, if we equate the factor duration of our liability with a portfolio, then this will be a fully hedged position (under the model's assumptions).
A143: weight in bill: | C143: =(A136-A118)/(G139-A118) -> 0.06167348213
A144: weight in bond: | C144: =1-C143 -> 0.9383265179
A146: Verify: Portfolio factor duration: | D146: =C143*G139+C144*A118 -> 1.502380432 | E146: checks.
A147: So the dollar amounts in each security:
A148: Bond: | B148: =C144*K6 -> 938,326.52
A149: Bill: | B149: =C143*K6 -> 61,673.48
A150: Portfolio: | B150: =B148+B149 -> 1,000,000.00
A152: And for the purposes of knowing our future cash flows, we need the par amounts in each:
A153: Bond: | B153: =B148/(A85/100) -> 932,732.89
A154: Bill: | B154: =B149/B91 -> 62,667.80
D159: 0 | E159: 0.5 | F159: 1 | G159: 1.5 | H159: 2 | I159: 2.5 | J159: 3 | K159: 3.5 | L159: 4 | M159: 4.5 | N159: 5 | O159: 5.5 | P159: 6 | Q159: 6.5 | R159: 7 | S159: 7.5 | T159: 8 | U159: 8.5 | V159: 9 | W159: 9.5 | X159: 10 | Y159: 10.5 | Z159: 11 | AA159: 11.5 | AB159: 12 | AC159: 12.5 | AD159: 13 | AE159: 13.5 | AF159: 14 | AG159: 14.5 | AH159: 15 | AI159: 15.5 | AJ159: 16 | AK159: 16.5 | AL159: 17 | AM159: 17.5 | AN159: 18 | AO159: 18.5 | AP159: 19 | AQ159: 19.5 | AR159: 20
D160: 1000000 | E160: 978625.9978 | F160: 958135.1345 | G160: 938939.6647 | H160: 920442.1067 | I160: 901947.4851 | J160: 883618.1358 | K160: 865350.2176 | L160: 846875.6762 | M160: 827844.3746 | N160: 809028.5485 | O160: 789567.4699 | P160: 769793.438 | Q160: 749733.0586 | R160: 729366.1164 | S160: 708077.3887 | T160: 686431.2242 | U160: 664418.2482 | V160: 642038.3985 | W160: 619339.4287 | X160: 595598.2232 | Y160: 571715.1201 | Z160: 547280.993 | AA160: 522181.6447 | AB160: 496760.3194 | AC160: 470554.1627 | AD160: 443776.212 | AE160: 416517.2938 | AF160: 388563.6657 | AG160: 360029.4071 | AH160: 330710.3916 | AI160: 300880.4368 | AJ160: 270238.1581 | AK160: 239020.871 | AL160: 207040.0515 | AM160: 174353.3825 | AN160: 140931.2046 | AO160: 106776.9217 | AP160: 71827.98675 | AQ160: 36099.83839 | AR160: -431.5121218
D164: 2.963962174 | ALQ164: -431.6145385
D165: -1034.78053 | ALQ165: -431.971735
D166: 1770.606864 | ALQ166: -431.3110725

Sheet 2FVas
A1: Here we consider the dynamic hedging problem of an annuity using the 2-factor Vasicek model.
B2: In this model all risk comes from the uncertain future movement of the factor.
B3: Therefore we want to build an asset that has the same factor duration on both factors as our liability (the annuity).
A5: Parameters of the model:
B6: Factor 1 | C6: Factor 2
A7: theta | B7: 0.025 | C7: 0.008 | D7: (long-run mean)
A8: k | B8: 1 | C8: 0.1 | D8: (magnitude of the pull to the long-run mean)
A9: sigma | B9: 0.01 | C9: 0.002 | D9: (annual standard deviation)
A10: lambda | B10: 0.01 | C10: 0.0006 | D10: (risk premium)
A11: rho: | B11: -0.6 | D11: Correlation between the 2 factor shocks
A12: f(t) | B12: 0.02 | C12: 0.01 | D12: Current Factor level
A14: Term Structure:
A15: Term | B15: spot rate | C15: df
A16: 0.5 | B16: =LN(C16)/-A16 -> 0.03329202087 | C16: =vas2fZ($B$12,$B$8,$B$7,$B$9,$B$10,$C$12,$C$8,$C$7,$C$9,$C$10,$B$11,A16) -> 0.9834917688
A17: 1 | B17: =LN(C17)/-A17 -> 0.03570539299 | C17: =vas2fZ($B$12,$B$8,$B$7,$B$9,$B$10,$C$12,$C$8,$C$7,$C$9,$C$10,$B$11,A17) -> 0.9649245251
A18: 1.5 | B18: 0.03750663642 | C18: 0.9452933706
A19: 2 | B19: 0.0388761506 | C19: 0.9251935675
A20: 2.5 | B20: 0.03993724875 | C20: 0.9049793784
A21: 3 | B21: 0.04077506016 | C21: 0.8848605823
A22: 3.5 | B22: 0.04144895406 | C22: 0.8649605853
A23: 4 | B23: 0.04200077388 | C23: 0.8453512179
A24: 4.5 | B24: 0.04246033673 | C24: 0.8260735092
A25: 5 | B25: 0.04284913403 | C25: 0.807150068
A26: 5.5 | B26: 0.04318284026 | C26: 0.7885924579
A27: 6 | B27: 0.04347302677 | C27: 0.7704055915
A28: 6.5 | B28: 0.0437283418 | C28: 0.7525903511
A29: 7 | B29: 0.04395532975 | C29: 0.7351451559
A30: 7.5 | B30: 0.04415900476 | C30: 0.7180669022
A31: 8 | B31: 0.04434325589 | C31: 0.7013515308
A32: 8.5 | B32: 0.04451113606 | C32: 0.6849943722
A33: 9 | B33: 0.04466506992 | C33: 0.6689903595
A34: 9.5 | B34: 0.04480700492 | C34: 0.6533341622
A35: 10 | B35: 0.04493852215 | C35: 0.6380202722
A36: 10.5 | B36: 0.04506091849 | C36: 0.6230430608
A37: 11 | B37: 0.04517526806 | C37: 0.6083968181
A38: 11.5 | B38: 0.04528246864 | C38: 0.5940757816
A39: 12 | B39: 0.04538327714 | C39: 0.5800741576
A40: 12.5 | B40: 0.04547833682 | C40: 0.5663861383
A41: 13 | B41: 0.04556819854 | C41: 0.5530059151
A42: 13.5 | B42: 0.04565333738 | C42: 0.5399276906
A43: 14 | B43: 0.04573416575 | C43: 0.5271456882
A44: 14.5 | B44: 0.04581104389 | C44: 0.5146541608
A45: 15 | B45: 0.0458842883 | C45: 0.5024473983
A46: 15.5 | B46: 0.04595417855 | C46: 0.4905197344
A47: 16 | B47: 0.04602096283 | C47: 0.4788655522
A48: 16.5 | B48: 0.04608486253 | C48: 0.4674792895
A49: 17 | B49: 0.04614607599 | C49: 0.4563554434
A50: 17.5 | B50: 0.04620478168 | C50: 0.4454885743
A51: 18 | B51: 0.04626114075 | C51: 0.4348733092
A52: 18.5 | B52: 0.04631529931 | C52: 0.4245043452
A53: 19 | B53: 0.04636739023 | C53: 0.4143764518
A54: 19.5 | B54: 0.04641753479 | C54: 0.4044844732
A55: 20 | B55: 0.04646584396 | C55: 0.3948233303
A56: 20.5 | B56: 0.04651241961 | C56: 0.3853880223
A57: 21 | B57: 0.04655735551 | C57: 0.376173628
A58: 21.5 | B58: 0.04660073815 | C58: 0.3671753067
A59: 22 | B59: 0.04664264753 | C59: 0.3583882992
A60: 22.5 | B60: 0.04668315782 | C60: 0.3498079284
A61: 23 | B61: 0.0467223379 | C61: 0.3414295996
A62: 23.5 | B62: 0.04676025187 | C62: 0.3332488006
A63: 24 | B63: 0.04679695952 | C63: 0.325261102
A64: 24.5 | B64: 0.04683251669 | C64: 0.3174621568
A65: 25 | B65: 0.04686697563 | C65: 0.3098477005
A66: 25.5 | B66: 0.04690038532 | C66: 0.3024135506
A67: 26 | B67: 0.04693279171 | C67: 0.2951556058
A68: 26.5 | B68: 0.04696423802 | C68: 0.2880698459
A69: 27 | B69: 0.04699476491 | C69: 0.2811523312
A70: 27.5 | B70: 0.0470244107 | C70: 0.2743992012
A71: 28 | B71: 0.04705321154 | C71: 0.2678066744
A72: 28.5 | B72: 0.0470812016 | C72: 0.2613710469
A73: 29 | B73: 0.04710841318 | C73: 0.2550886921
A74: 29.5 | B74: 0.04713487686 | C74: 0.2489560591
A75: 30 | B75: 0.04716062162 | C75: 0.2429696723
A79: 30-Year Bond: | C79: 4.25% | E79: 30
A80: Time: | B80: 0.5 | C80: 1 | D80: 1.5 | E80: 2 | F80: 2.5 | G80: 3 | H80: 3.5 | I80: 4 | J80: 4.5 | K80: 5 | L80: 5.5 | M80: 6 | N80: 6.5 | O80: 7 | P80: 7.5 | Q80: 8 | R80: 8.5 | S80: 9 | T80: 9.5 | U80: 10 | V80: 10.5 | W80: 11 | X80: 11.5 | Y80: 12 | Z80: 12.5 | AA80: 13 | AB80: 13.5 | AC80: 14 | AD80: 14.5 | AE80: 15 | AF80: 15.5 | AG80: 16 | AH80: 16.5 | AI80: 17 | AJ80: 17.5 | AK80: 18 | AL80: 18.5 | AM80: 19 | AN80: 19.5 | AO80: 20 | AP80: 20.5 | AQ80: 21 | AR80: 21.5 | AS80: 22 | AT80: 22.5 | AU80: 23 | AV80: 23.5 | AW80: 24 | AX80: 24.5 | AY80: 25 | AZ80: 25.5 | BA80: 26 | BB80: 26.5 | BC80: 27 | BD80: 27.5 | BE80: 28 | BF80: 28.5 | BG80: 29 | BH80: 29.5 | BI80: 30
A81: CF: | B81: =50*$C$79 -> 2.125 | C81: =50*$C$79 -> 2.125 | D81: 2.125 | E81: 2.125 | F81: 2.125 | G81: 2.125 | H81: 2.125 | I81: 2.125 | J81: 2.125 | K81: 2.125 | L81: 2.125 | M81: 2.125 | N81: 2.125 | O81: 2.125 | P81: 2.125 | Q81: 2.125 | R81: 2.125 | S81: 2.125 | T81: 2.125 | U81: 2.125 | V81: 2.125 | W81: 2.125 | X81: 2.125 | Y81: 2.125 | Z81: 2.125 | AA81: 2.125 | AB81: 2.125 | AC81: 2.125 | AD81: 2.125 | AE81: 2.125 | AF81: 2.125 | AG81: 2.125 | AH81: 2.125 | AI81: 2.125 | AJ81: 2.125 | AK81: 2.125 | AL81: 2.125 | AM81: 2.125 | AN81: 2.125 | AO81: 2.125 | AP81: 2.125 | AQ81: 2.125 | AR81: 2.125 | AS81: 2.125 | AT81: 2.125 | AU81: 2.125 | AV81: 2.125 | AW81: 2.125 | AX81: 2.125 | AY81: 2.125 | AZ81: 2.125 | BA81: 2.125 | BB81: 2.125 | BC81: 2.125 | BD81: 2.125 | BE81: 2.125 | BF81: 2.125 | BG81: 2.125 | BH81: 2.125 | BI81: =50*$C$79+100 -> 102.125
A82: df: | B82: =vas2fZ($B$12,$B$8,$B$7,$B$9,$B$10,$C$12,$C$8,$C$7,$C$9,$C$10,$B$11,B80) -> 0.9834917688 | C82: =vas2fZ($B$12,$B$8,$B$7,$B$9,$B$10,$C$12,$C$8,$C$7,$C$9,$C$10,$B$11,C80) -> 0.9649245251 | D82: 0.9452933706 | E82: 0.9251935675 | F82: 0.9049793784 | G82: 0.8848605823 | H82: 0.8649605853 | I82: 0.8453512179 | J82: 0.8260735092 | K82: 0.807150068 | L82: 0.7885924579 | M82: 0.7704055915 | N82: 0.7525903511 | O82: 0.7351451559 | P82: 0.7180669022 | Q82: 0.7013515308 | R82: 0.6849943722 | S82: 0.6689903595 | T82: 0.6533341622 | U82: 0.6380202722 | V82: 0.6230430608 | W82: 0.6083968181 | X82: 0.5940757816 | Y82: 0.5800741576 | Z82: 0.5663861383 | AA82: 0.5530059151 | AB82: 0.5399276906 | AC82: 0.5271456882 | AD82: 0.5146541608 | AE82: 0.5024473983 | AF82: 0.4905197344 | AG82: 0.4788655522 | AH82: =vas2fZ($B$12,$B$8,$B$7,$B$9,$B$10,$C$12,$C$8,$C$7,$C$9,$C$10,$B$11,AH80) -> 0.4674792895 | AI82: 0.4563554434 | AJ82: 0.4454885743 | AK82: 0.4348733092 | AL82: 0.4245043452 | AM82: 0.4143764518 | AN82: 0.4044844732 | AO82: 0.3948233303 | AP82: 0.3853880223 | AQ82: 0.376173628 | AR82: 0.3671753067 | AS82: 0.3583882992 | AT82: 0.3498079284 | AU82: 0.3414295996 | AV82: 0.3332488006 | AW82: 0.325261102 | AX82: 0.3174621568 | AY82: 0.3098477005 | AZ82: 0.3024135506 | BA82: 0.2951556058 | BB82: 0.2880698459 | BC82: 0.2811523312 | BD82: 0.2743992012 | BE82: 0.2678066744 | BF82: 0.2613710469 | BG82: 0.2550886921 | BH82: 0.2489560591 | BI82: 0.2429696723
A83: PV: | B83: =B81*B82 -> 2.089920009 | C83: =C81*C82 -> 2.050464616 | D83: 2.008748412 | E83: 1.966036331 | F83: 1.923081179 | G83: 1.880328737 | H83: 1.838041244 | I83: 1.796371338 | J83: 1.755406207 | K83: 1.715193894 | L83: 1.675758973 | M83: 1.637111882 | N83: 1.599254496 | O83: 1.562183456 | P83: 1.525892167 | Q83: 1.490372003 | R83: 1.455613041 | S83: 1.421604514 | T83: 1.388335095 | U83: 1.355793078 | V83: 1.323966504 | W83: 1.292843238 | X83: 1.262411036 | Y83: 1.232657585 | Z83: 1.203570544 | AA83: 1.17513757 | AB83: 1.147346343 | AC83: 1.120184587 | AD83: 1.093640092 | AE83: 1.067700721 | AF83: 1.042354436 | AG83: 1.017589298 | AH83: 0.9933934903 | AI83: 0.9697553173 | AJ83: 0.9466632203 | AK83: 0.9241057821 | AL83: 0.9020717336 | AM83: 0.8805499601 | AN83: 0.8595295056 | AO83: 0.838999577 | AP83: 0.8189495475 | AQ83: 0.7993689595 | AR83: 0.7802475267 | AS83: 0.7615751358 | AT83: 0.7433418479 | AU83: 0.7255378992 | AV83: 0.7081537013 | AW83: 0.6911798417 | AX83: 0.6746070832 | AY83: 0.6584263636 | AZ83: 0.6426287949 | BA83: 0.6272056622 | BB83: 0.6121484226 | BC83: 0.5974487038 | BD83: 0.5830983026 | BE83: 0.569089183 | BF83: 0.5554134747 | BG83: 0.5420634707 | BH83: 0.5290316257 | BI83: 24.81327779
A84: =SUM(B83:BI83) -> 92.86277455
A85: wt: | B85: =B83/$A$84 -> 0.02250546593 | C85: =C83/$A$84 -> 0.02208058747 | D85: 0.02163136329 | E85: 0.02117141492 | F85: 0.02070884903 | G85: 0.02024846605 | H85: 0.01979308989 | I85: 0.01934436427 | J85: 0.01890322807 | K85: 0.01847019866 | L85: 0.01804554065 | M85: 0.01762936645 | N85: 0.01722169625 | O85: 0.01682249388 | P85: 0.01643168831 | Q85: 0.01604918667 | R85: 0.01567488208 | S85: 0.01530865862 | T85: 0.01495039429 | U85: 0.01459996306 | V85: 0.01425723613 | W85: 0.01392208282 | X85: 0.01359437129 | Y85: 0.01327396894 | Z85: 0.01296074288 | AA85: 0.01265456019 | AB85: 0.0123552882 | AC85: 0.01206279473 | AD85: 0.01177694827 | AE85: 0.01149761814 | AF85: 0.0112246747 | AG85: 0.01095798939 | AH85: 0.01069743495 | AI85: 0.01044288545 | AJ85: 0.01019421641 | AK85: 0.009951304886 | AL85: 0.009714029524 | AM85: 0.009482270634 | AN85: 0.009255910237 | AO85: 0.009034832106 | AP85: 0.008818921806 | AQ85: 0.008608066724 | AR85: 0.00840215609 | AS85: 0.008201080998 | AT85: 0.008004734422 | AU85: 0.007813011217 | AV85: 0.007625808132 | AW85: 0.007443023806 | AX85: 0.00726455877 | AY85: 0.007090315434 | AZ85: 0.006920198089 | BA85: 0.006754112886 | BB85: 0.006591967832 | BC85: 0.006433672769 | BD85: 0.006279139359 | BE85: 0.006128281066 | BF85: 0.005981013139 | BG85: 0.005837252584 | BH85: 0.005696918149 | BI85: 0.267203709
A86: f1 dur: | B86: =fdur($B$8,B80) -> 0.3934693403 | C86: =fdur($B$8,C80) -> 0.6321205588 | D86: 0.7768698399 | E86: 0.8646647168 | F86: 0.9179150014 | G86: 0.9502129316 | H86: 0.9698026166 | I86: 0.9816843611 | J86: 0.9888910035 | K86: 0.993262053 | L86: 0.9959132286 | M86: 0.9975212478 | N86: 0.9984965608 | O86: 0.999088118 | P86: 0.9994469156 | Q86: 0.9996645374 | R86: 0.9997965316 | S86: 0.9998765902 | T86: 0.9999251482 | U86: 0.9999546001 | V86: 0.9999724636 | W86: 0.9999832983 | X86: 0.9999898699 | Y86: 0.9999938558 | Z86: 0.9999962733 | AA86: 0.9999977397 | AB86: 0.999998629 | AC86: 0.9999991685 | AD86: 0.9999994957 | AE86: 0.9999996941 | AF86: 0.9999998145 | AG86: 0.9999998875 | AH86: 0.9999999317 | AI86: 0.9999999586 | AJ86: 0.9999999749 | AK86: 0.9999999848 | AL86: 0.9999999908 | AM86: 0.9999999944 | AN86: 0.9999999966 | AO86: 0.9999999979 | AP86: 0.9999999987 | AQ86: 0.9999999992 | AR86: 0.9999999995 | AS86: 0.9999999997 | AT86: 0.9999999998 | AU86: 0.9999999999 | AV86: 0.9999999999 | AW86: 1 | AX86: 1 | AY86: 1 | AZ86: 1 | BA86: 1 | BB86: 1 | BC86: 1 | BD86: 1 | BE86: 1 | BF86: 1 | BG86: 1 | BH86: 1 | BI86: 1
A87: f1dur*wt: | B87: =B85*B86 -> 0.008855210833 | C87: =C85*C86 -> 0.01395759329 | D87: 0.01680475374 | E87: 0.01830617549 | F87: 0.01900896319 | G87: 0.01924035428 | H87: 0.01919539036 | I87: 0.01899005988 | J87: 0.01869323218 | K87: 0.01834574744 | L87: 0.01797179265 | M87: 0.01758566762 | N87: 0.01719580448 | O87: 0.01680715375 | P87: 0.0164226002 | Q87: 0.01604380276 | R87: 0.01567169274 | S87: 0.01530676938 | T87: 0.01494927523 | U87: 0.01459930023 | V87: 0.01425684353 | W87: 0.0139218503 | X87: 0.01359423357 | Y87: 0.01327388738 | Z87: 0.01296069458 | AA87: 0.01265453158 | AB87: 0.01235527126 | AC87: 0.0120627847 | AD87: 0.01177694233 | AE87: 0.01149761463 | AF87: 0.01122467261 | AG87: 0.01095798816 | AH87: 0.01069743422 | AI87: 0.01044288502 | AJ87: 0.01019421616 | AK87: 0.009951304734 | AL87: 0.009714029434 | AM87: 0.009482270581 | AN87: 0.009255910206 | AO87: 0.009034832088 | AP87: 0.008818921795 | AQ87: 0.008608066717 | AR87: 0.008402156086 | AS87: 0.008201080996 | AT87: 0.00800473442 | AU87: 0.007813011216 | AV87: 0.007625808131 | AW87: 0.007443023806 | AX87: 0.007264558769 | AY87: 0.007090315434 | AZ87: 0.006920198089 | BA87: 0.006754112886 | BB87: 0.006591967832 | BC87: 0.006433672769 | BD87: 0.006279139359 | BE87: 0.006128281066 | BF87: 0.005981013139 | BG87: 0.005837252584 | BH87: 0.005696918149 | BI87: 0.267203709
A88: =SUM(B87:BI87) -> 0.966359479
A89: f2dur | B89: =fdur($C$8,B80) -> 0.487705755 | C89: =fdur($C$8,C80) -> 0.9516258196 | D89: 1.392920236 | E89: 1.812692469 | F89: 2.211992169 | G89: 2.591817793 | H89: 2.953119103 | I89: 3.29679954 | J89: 3.623718484 | K89: 3.934693403 | L89: 4.230501896 | M89: 4.511883639 | N89: 4.779542232 | O89: 5.034146962 | P89: 5.276334473 | Q89: 5.506710359 | R89: 5.725850681 | S89: 5.934303403 | T89: 6.132589765 | U89: 6.321205588 | V89: 6.500622509 | W89: 6.671289163 | X89: 6.833632306 | Y89: 6.988057881 | Z89: 7.134952031 | AA89: 7.27468207 | AB89: 7.407597394 | AC89: 7.534030361 | AD89: 7.654297119 | AE89: 7.768698399 | AF89: 7.877520262 | AG89: 7.98103482 | AH89: 8.079500914 | AI89: 8.173164759 | AJ89: 8.262260565 | AK89: 8.347011118 | AL89: 8.427628337 | AM89: 8.504313808 | AN89: 8.577259284 | AO89: 8.646647168 | AP89: 8.712650964 | AQ89: 8.775435717 | AR89: 8.835158422 | AS89: 8.891968416 | AT89: 8.946007754 | AU89: 8.997411563 | AV89: 9.046308378 | AW89: 9.092820467 | AX89: 9.137064135 | AY89: 9.179150014 | AZ89: 9.21918334 | BA89: 9.257264218 | BB89: 9.293487869 | BC89: 9.327944873 | BD89: 9.360721388 | BE89: 9.391899374 | BF89: 9.421556791 | BG89: 9.449767799 | BH89: 9.476602941 | BI89: 9.502129316
A90: f1dur*wt: | B90: =B85*B89 -> 0.01097604525 | C90: =C85*C89 -> 0.02101245715 | D90: 0.03013076365 | E90: 0.0383772644 | F90: 0.0458078119 | G90: 0.05248033458 | H90: 0.05845135185 | I90: 0.06377449122 | J90: 0.06849997698 | K90: 0.07267456884 | L90: 0.07634169394 | M90: 0.07954165005 | N90: 0.08231182453 | O90: 0.08468690645 | P90: 0.08669908349 | Q90: 0.08837822247 | R90: 0.08975203424 | S90: 0.09084622493 | T90: 0.09168463504 | U90: 0.09228936811 | V90: 0.09268091008 | W90: 0.09287824026 | X90: 0.0928989348 | Y90: 0.09275926326 | Z90: 0.09247427873 | AA90: 0.09205790209 | AB90: 0.09152300066 | AC90: 0.09088146172 | AD90: 0.09014426118 | AE90: 0.08932152765 | AF90: 0.08842260235 | AG90: 0.0874560949 | AH90: 0.08642993548 | AI90: 0.08535142336 | AJ90: 0.08422727225 | AK90: 0.08306365252 | AL90: 0.08186623048 | AM90: 0.08064020509 | AN90: 0.07939034202 | AO90: 0.07812100544 | AP90: 0.07683618758 | AQ90: 0.07553953619 | AR90: 0.07423438014 | AS90: 0.07292375322 | AT90: 0.07161041621 | AU90: 0.07029687746 | AV90: 0.06898541199 | AW90: 0.0676780792 | AX90: 0.06637673939 | AY90: 0.06508306902 | AZ90: 0.06379857493 | BA90: 0.06252460754 | BB90: 0.06126237308 | BC90: 0.06001294491 | BD90: 0.05877727409 | BE90: 0.05755619911 | BF90: 0.05635045495 | BG90: 0.0551606815 | BH90: 0.05398743128 | BI90: 2.539004197
A91: =SUM(B90:BI90) -> 6.855304442
A94: 20-Year Annuity | C94: Semi-annual cash flow: | E94: 38,336.65 | F94: Value | G94: 1000000 | I94: 20
A95: Time: | B95: 0.5 | C95: 1 | D95: 1.5 | E95: 2 | F95: 2.5 | G95: 3 | H95: 3.5 | I95: 4 | J95: 4.5 | K95: 5 | L95: 5.5 | M95: 6 | N95: 6.5 | O95: 7 | P95: 7.5 | Q95: 8 | R95: 8.5 | S95: 9 | T95: 9.5 | U95: 10 | V95: 10.5 | W95: 11 | X95: 11.5 | Y95: 12 | Z95: 12.5 | AA95: 13 | AB95: 13.5 | AC95: 14 | AD95: 14.5 | AE95: 15 | AF95: 15.5 | AG95: 16 | AH95: 16.5 | AI95: 17 | AJ95: 17.5 | AK95: 18 | AL95: 18.5 | AM95: 19 | AN95: 19.5 | AO95: 20
A96: CF: | B96: =$E$94 -> 38336.6538 | C96: =$E$94 -> 38336.6538 | D96: 38336.6538 | E96: 38336.6538 | F96: 38336.6538 | G96: 38336.6538 | H96: 38336.6538 | I96: 38336.6538 | J96: 38336.6538 | K96: 38336.6538 | L96: 38336.6538 | M96: 38336.6538 | N96: 38336.6538 | O96: 38336.6538 | P96: 38336.6538 | Q96: 38336.6538 | R96: 38336.6538 | S96: 38336.6538 | T96: 38336.6538 | U96: 38336.6538 | V96: 38336.6538 | W96: 38336.6538 | X96: 38336.6538 | Y96: 38336.6538 | Z96: 38336.6538 | AA96: 38336.6538 | AB96: 38336.6538 | AC96: 38336.6538 | AD96: 38336.6538 | AE96: 38336.6538 | AF96: 38336.6538 | AG96: 38336.6538 | AH96: 38336.6538 | AI96: 38336.6538 | AJ96: 38336.6538 | AK96: 38336.6538 | AL96: 38336.6538 | AM96: 38336.6538 | AN96: 38336.6538 | AO96: 38336.6538
A97: df: | B97: =B82 -> 0.9834917688 | C97: =C82 -> 0.9649245251 | D97: 0.9452933706 | E97: 0.9251935675 | F97: 0.9049793784 | G97: 0.8848605823 | H97: 0.8649605853 | I97: 0.8453512179 | J97: 0.8260735092 | K97: 0.807150068 | L97: 0.7885924579 | M97: 0.7704055915 | N97: 0.7525903511 | O97: 0.7351451559 | P97: 0.7180669022 | Q97: 0.7013515308 | R97: 0.6849943722 | S97: 0.6689903595 | T97: 0.6533341622 | U97: 0.6380202722 | V97: 0.6230430608 | W97: 0.6083968181 | X97: 0.5940757816 | Y97: 0.5800741576 | Z97: 0.5663861383 | AA97: 0.5530059151 | AB97: 0.5399276906 | AC97: 0.5271456882 | AD97: 0.5146541608 | AE97: 0.5024473983 | AF97: 0.4905197344 | AG97: 0.4788655522 | AH97: 0.4674792895 | AI97: 0.4563554434 | AJ97: 0.4454885743 | AK97: 0.4348733092 | AL97: 0.4245043452 | AM97: 0.4143764518 | AN97: 0.4044844732 | AO97: 0.3948233303
A98: PV: | B98: =B96*B97 -> 37703.78346 | C98: =C96*C97 -> 36991.97746 | D98: 36239.38469 | E98: 35468.8255 | F98: 34693.88113 | G98: 33922.59381 | H98: 33159.69451 | I98: 32407.93698 | J98: 31668.89413 | K98: 30943.43272 | L98: 30231.99605 | M98: 29534.77245 | N98: 28851.79574 | O98: 28183.00534 | P98: 27528.28224 | Q98: 26887.47083 | R98: 26260.3921 | S98: 25646.85181 | T98: 25046.64559 | U98: 24459.56229 | V98: 23885.38612 | W98: 23323.89819 | X98: 22774.87757 | Y98: 22238.10216 | Z98: 21713.3493 | AA98: 21200.39632 | AB98: 20699.02095 | AC98: 20209.00175 | AD98: 19730.11839 | AE98: 19262.15196 | AF98: 18804.88524 | AG98: 18358.10289 | AH98: 17921.59168 | AI98: 17495.14065 | AJ98: 17078.54124 | AK98: 16671.5875 | AL98: 16274.07612 | AM98: 15885.80658 | AN98: 15506.58122 | AO98: 15136.20533
A99: =SUM(B98:BC98) -> 1000000 | B99: Criterion: | C99: =(A99-G94)^2 -> 0 | D99: (To Use Solver to obtain the payment)
A100: wt: | B100: =B98/$A$99 -> 0.03770378346 | C100: =C98/$A$99 -> 0.03699197746 | D100: 0.03623938469 | E100: 0.0354688255 | F100: 0.03469388113 | G100: 0.03392259381 | H100: 0.03315969451 | I100: 0.03240793698 | J100: 0.03166889413 | K100: 0.03094343272 | L100: 0.03023199605 | M100: 0.02953477245 | N100: 0.02885179574 | O100: 0.02818300534 | P100: 0.02752828224 | Q100: 0.02688747083 | R100: 0.0262603921 | S100: 0.02564685181 | T100: 0.02504664559 | U100: 0.02445956229 | V100: 0.02388538612 | W100: 0.02332389819 | X100: 0.02277487757 | Y100: 0.02223810216 | Z100: 0.0217133493 | AA100: 0.02120039632 | AB100: 0.02069902095 | AC100: 0.02020900175 | AD100: 0.01973011839 | AE100: 0.01926215196 | AF100: 0.01880488524 | AG100: 0.01835810289 | AH100: 0.01792159168 | AI100: 0.01749514065 | AJ100: 0.01707854124 | AK100: 0.0166715875 | AL100: 0.01627407612 | AM100: 0.01588580658 | AN100: 0.01550658122 | AO100: 0.01513620533
A101: f1dur: | B101: =B86 -> 0.3934693403 | C101: =C86 -> 0.6321205588 | D101: 0.7768698399 | E101: 0.8646647168 | F101: 0.9179150014 | G101: 0.9502129316 | H101: 0.9698026166 | I101: 0.9816843611 | J101: 0.9888910035 | K101: 0.993262053 | L101: 0.9959132286 | M101: 0.9975212478 | N101: 0.9984965608 | O101: 0.999088118 | P101: 0.9994469156 | Q101: 0.9996645374 | R101: 0.9997965316 | S101: 0.9998765902 | T101: 0.9999251482 | U101: 0.9999546001 | V101: 0.9999724636 | W101: 0.9999832983 | X101: 0.9999898699 | Y101: 0.9999938558 | Z101: 0.9999962733 | AA101: 0.9999977397 | AB101: 0.999998629 | AC101: 0.9999991685 | AD101: 0.9999994957 | AE101: 0.9999996941 | AF101: 0.9999998145 | AG101: 0.9999998875 | AH101: 0.9999999317 | AI101: 0.9999999586 | AJ101: 0.9999999749 | AK101: 0.9999999848 | AL101: 0.9999999908 | AM101: 0.9999999944 | AN101: 0.9999999966 | AO101: 0.9999999979
A102: f1dur*wt: | B102: =B100*B101 -> 0.0148352828 | C102: =C100*C101 -> 0.02338338947 | D102: 0.02815328498 | E102: 0.03066864195 | F102: 0.03184603394 | G102: 0.03223368731 | H102: 0.0321583585 | I102: 0.03181436491 | J102: 0.0313170845 | K102: 0.03073493751 | L102: 0.03010844479 | M102: 0.02946156307 | N102: 0.02880841882 | O102: 0.02815730576 | P102: 0.02751305677 | Q102: 0.02687845109 | R102: 0.02625504894 | S102: 0.02564368674 | T102: 0.02504477081 | U102: 0.02445845183 | V102: 0.02388472841 | W102: 0.02332350864 | X102: 0.02277464686 | Y102: 0.02223796552 | Z102: 0.02171326838 | AA102: 0.0212003484 | AB102: 0.02069899258 | AC102: 0.02020898495 | AD102: 0.01973010844 | AE102: 0.01926214607 | AF102: 0.01880488175 | AG102: 0.01835810083 | AH102: 0.01792159046 | AI102: 0.01749513992 | AJ102: 0.01707854082 | AK102: 0.01667158725 | AL102: 0.01627407597 | AM102: 0.01588580649 | AN102: 0.01550658117 | AO102: 0.0151362053
A103: =SUM(B102:AO102) -> 0.9436414727
A104: f2dur: | B104: =B89 -> 0.487705755 | C104: =C89 -> 0.9516258196 | D104: 1.392920236 | E104: 1.812692469 | F104: 2.211992169 | G104: 2.591817793 | H104: 2.953119103 | I104: 3.29679954 | J104: 3.623718484 | K104: 3.934693403 | L104: 4.230501896 | M104: 4.511883639 | N104: 4.779542232 | O104: 5.034146962 | P104: 5.276334473 | Q104: 5.506710359 | R104: 5.725850681 | S104: 5.934303403 | T104: 6.132589765 | U104: 6.321205588 | V104: 6.500622509 | W104: 6.671289163 | X104: 6.833632306 | Y104: 6.988057881 | Z104: 7.134952031 | AA104: 7.27468207 | AB104: 7.407597394 | AC104: 7.534030361 | AD104: 7.654297119 | AE104: 7.768698399 | AF104: 7.877520262 | AG104: 7.98103482 | AH104: 8.079500914 | AI104: 8.173164759 | AJ104: 8.262260565 | AK104: 8.347011118 | AL104: 8.427628337 | AM104: 8.504313808 | AN104: 8.577259284 | AO104: 8.646647168
A105: f2dur*wt: | B105: =B100*B104 -> 0.01838835218 | C105: =C100*C104 -> 0.03520252087 | D105: 0.05047857226 | E105: 0.06429407287 | F105: 0.07674259337 | G105: 0.08792118222 | H105: 0.0979245273 | I105: 0.1068424717 | J105: 0.114759157 | K105: 0.1217529206 | L105: 0.1278965166 | M105: 0.1332574566 | N105: 0.1378983762 | O105: 0.1418773907 | P105: 0.1452484245 | Q105: 0.1480615141 | R105: 0.150363084 | S105: 0.1521962 | T105: 0.1536008024 | U105: 0.1546139219 | V105: 0.1552698787 | W105: 0.1556004692 | X105: 0.1556351391 | Y105: 0.1554011451 | Z105: 0.1549237057 | AA105: 0.154226143 | AB105: 0.1533300137 | AC105: 0.1522552327 | AD105: 0.1510201883 | AE105: 0.1496418491 | AF105: 0.1481358645 | AG105: 0.1465166584 | AH105: 0.1447975164 | AI105: 0.142990667 | AJ105: 0.1411073578 | AK105: 0.1391579262 | AL105: 0.1371518651 | AM105: 0.1350978842 | AN105: 0.1330039677 | AO105: 0.1308774269
A106: =SUM(B105:AO105) -> 5.155460956
A109: 3-year STRIP | C109: 3
A110: =100*G97 -> 88.48605823
A111: f1 dur: | B111: =G101 -> 0.9502129316
A112: f2dur: | B112: =G104 -> 2.591817793
A115: 6-month Bill:
A116: =100*B97 -> 98.34917688
A117: f1 dur: | B117: =B101 -> 0.3934693403
A118: f2dur: | B118: =B104 -> 0.487705755
AU122: =AVERAGE(D122:AR122) -> 
AU123: =AVERAGE(D123:AR123) -> 
AU124: =AVERAGE(D124:AR124) -> 
D127: wts | E127: Factor durations
C128: Bill | D128: 0.02966682477 | E128: Factor 1: | F128: =D128*B117+D129*B111+D130*A88 -> 0.9436414727 | G128: We can run the subroutine Chkwts in Module 8 to get the initial weights on the 3 assets.
C129: Strip | D129: 0.3543900041 | E129: Factor 2: | F129: =D128*B118+D129*B112+D130*A91 -> 5.155460956 | G129: This is our hedge portfolio, which should have the same factor durations as the annuity.
C130: Bond | D130: 0.6159431711 | G130: Also the weights must sum to 1.
D131: =SUM(D128:D130) -> 1 | G131: Here we verify that both conditions are met. We obtain the weights by solving 3 equation in 3 unknowns, algebraically.
A133: We run the subroutine Monte in Module 7 to simulate NDRAWS paths from the Vasicek model.
A134: In each period we rebalance the hedge portfolio.
C137: 0.374993691 | E137: We tell the subroutine to report the average terminal cash in the position
C138: 253.4635479 | E138: -- and the maximium across all of the paths
C139: -110.3311289 | E139: -- and the minimum.
B566: -25163.19733
A567: -148.7114359
A568: 223.0693427
A569: 451.4413159
A570: -9.407731414
A571: 173.5210601
A572: -122.8681214
A573: 135.8879333
A574: -505.1991068
A575: -166.9014204
A576: 125.6999555
A577: -256.3800614
A578: -355.0634972
A579: 475.9834246
A580: 836.2262223
A581: -2769.090069
A582: 895.8274759
A583: 960.4735835
A584: 163.2410848
A585: 43.69658798
A586: -69.52837338
A587: -129.3695898
A588: -313.8445818
A589: -77.11323445
A590: -154.8753377
A591: -281.7050556
A592: -1393.901706
A593: -1423.828223
A594: 869.2794827
A595: 115.376414
A596: -187.1795746
A597: -39.05025591
A598: -221.8203804
A599: -806.5147262
A600: 548.4451188
A601: 327.7055686
A602: 182.9640562
A603: -464.0499352
A604: 1712.902518
A605: 153.3487782
A606: 396.5503351
A607: -222.7054722
A608: -500.5549329
A609: 146.0542407
A610: 2342.025697
A611: -315.5270871
A612: -22.05046875
A613: 255.2501505
A614: 982.6272502
A615: -370.0073618
A616: 292.1527762
A617: 448.3345928
A618: -213.68081
A619: 4.20988254
A620: -82.23388985
A621: -1444.171074
A622: 236.6460753
A623: 130.6623273
A624: -246.24781
A625: -159.2941306
A626: -297.1539158
A627: -248.6372252
A628: 436.9685137
A629: -314.2297706
A630: 645.1768967
A631: -227.7429657
A632: -2315.883197
A633: -21.3570214
A634: -78.47823933
A635: -1167.657623
A636: 129.7144893
A637: 641.8002828
A638: 1165.014039
A639: -106.3754094
A640: -190.709365
A641: -773.6380312
A642: -146.376523
A643: 1649.721423
A644: 16.55063688
A645: 231.0499056
... 489 more rows
